Workbook

Sheet Лист1
A2: СОГЛАСОВАНО: МБОУ СОШ | J2: УТВЕРЖДАЮ : (ИП оператор, если есть)
A3: Оновное (ОРГАНИЗОВАННОЕ) меню завтраков и обедов организации центров дневного пребывания и лагеря труда.
A5: ТК, Рецп | B5: 1 день
A6: Прием пищи, наименование блюда | C6: Выход, г | D6: Белки, г | E6: Жиры, г | F6: Углеводы, г | G6: ЭЦ, ккал | H6: С, мг | I6: Минеральные элементы (мг) | M6: Витамины
I7: Са | J7: Mg | K7: Р | L7: Fe | M7: РЭ, мкг | N7: ТЭ, мг | O7: В1, мг
B8: Завтрак
A9: 191 | B9: Каша рисовая молочная с маслом | C9: 185 | D9: 3.80 | E9: 4.80 | F9: 52.8 | G9: 256.0 | H9: 0.1 | I9: 137.1 | J9: 15.9 | K9: 140.3 | L9: 1.0 | M9: 189.2 | N9: 0.7 | O9: 0.1
A10: ДО7МА19 | B10: Сыр (порциями) | C10: 10 | D10: 2.5 | E10: 2.6 | F10: 32.8 | G10: 40.8 | H10: 0.1 | I10: 51.4 | J10: 5.6 | K10: 67.5 | L10: 0.0 | M10: 24.8 | N10: 0.1 | O10: 0.0
A11: ШО7ИЯ19 | B11: Чай с сахаром | C11: 200 | D11: 0.0 | E11: 0.0 | F11: 10.0 | G11: 40.0 | H11: 35.0 | I11: 2.4 | J11: 0.0 | K11: 0.0 | L11: 0.0 | M11: 0.0 | N11: 0.0 | O11: 0.0
A12: СПРЕБРЖ | B12: Хлеб пшеничный витамин. | C12: 40 | D12: 3.3 | E12: 3.9 | F12: 12.5 | G12: 69.0 | H12: 10.0 | I12: 16.0 | J12: 9.0 | K12: 0.0 | L12: 2.2 | M12: 5.0 | N12: 0.2 | O12: 0.0
A13: ДО4ЙГ19 | B13: Йогурт питьевой | C13: 100 | D13: 9.8 | E13: 9.2 | F13: 14.7 | G13: 92.0 | H13: 0.0 | I13: 10.0 | J13: 7.0 | K13: 32.0 | L13: 0.6 | M13: 0.0 | N13: 0.6 | O13: 0.1
B14: Итого за прием | C14: =SUM(C9:C13) -> 535 | D14: =SUM(D9:D13) -> 15.53 | E14: =SUM(E9:E13) -> 15.65 | F14: =SUM(F9:F13) -> 122.78 | G14: =SUM(G9:G13) -> 497.8 | H14: 45.17 | I14: 216.89 | J14: 37.47 | K14: 239.82 | L14: 3.83 | M14: 218.9 | N14: 1.62 | O14: 0.2
B15: Обед
A16: ** | B16: Помидоры свежие порционно | C16: 40 | D16: 0.2 | E16: 0.0 | F16: 1.2 | G16: 5.6 | H16: 10.6 | I16: 20.5 | J16: 7.5 | K16: 0.3 | L16: 0.4 | M16: 91.0 | N16: 0.8 | O16: 0.2
A17: тк 56 | B17: Рассольник ленинградский со сметаной | C17: 250 | D17: 1.7 | E17: 10.7 | F17: 25.3 | G17: 244.0 | H17: 21.3 | I17: 30.1 | J17: 22.3 | K17: 36.0 | L17: 0.8 | M17: 112.3 | N17: 0.2 | O17: 0.1
A18: ДО7РЭ19 | B18: Птица тушеная с овощами | C18: 200 | D18: 20.2 | E18: 2.7 | F18: 20.2 | G18: 186.2 | H18: 1.5 | I18: 11.3 | J18: 12.8 | K18: 134.4 | L18: 1.4 | M18: 7.2 | N18: 1.7 | O18: 0.0
A19: ДО7ЖИ20 | B19: Напиток из яблок | C19: 200 | D19: 0.2 | E19: 0.2 | F19: 36.3 | G19: 148.0 | H19: 0.0 | I19: 13.7 | J19: 129.4 | K19: 194.2 | L19: 4.4 | M19: 22.9 | N19: 0.0 | O19: 0.3
A20: СПРЕБРЖ | B20: Хлеб ржано-пшеничный витамин | C20: 60 | D20: 5.7 | E20: 1.6 | F20: 21.6 | G20: 121.0 | H20: 0.0 | I20: 0.6 | J20: 0.0 | K20: 12.2 | L20: 0.1 | M20: 0.0 | N20: 9.4 | O20: 0.0
B21: Итого за прием | C21: =SUM(C16:C20) -> 750 | D21: =D16+D17+D18+D19+D20 -> 28.07 | E21: =E16+E17+E18+E19+E20 -> 15.08 | F21: 104.58 | G21: 704.78 | H21: 33.38 | I21: 76.11 | J21: 171.92 | K21: 377.07 | L21: 7.06 | M21: 233.4 | N21: 12.08 | O21: 0.58
B22: Итого за день цена 125,60 | C22: =C14+C21 -> 1285 | D22: =D14+D21 -> 43.60 | E22: =E14+E21 -> 30.73 | F22: 227.36 | G22: 1202.58 | H22: 78.55 | I22: 293.00 | J22: 209.39 | K22: 616.89 | L22: 10.89 | M22: 452.30 | N22: 13.70 | O22: 0.78
B23: 2 день
A24: Прием пищи, наименование блюда | C24: Выход, г | D24: Белки, г | E24: Жиры, г | F24: Углеводы, г | G24: ЭЦ, ккал | H24: С, мг | I24: Минеральные элементы (мг) | M24: Витамины
I25: Са | J25: Mg | K25: Р | L25: Fe | M25: РЭ, мкг | N25: ТЭ, мг | O25: В1, мг
B26: Завтрак
A27: 227 | B27: Макаронные изделия запеченные с сыром | C27: 185 | D27: 7.3 | E27: 11.8 | F27: 24.5 | G27: 236.0 | H27: 0.5 | I27: 113.4 | J27: 39.6 | K27: 88.6 | L27: 1.0 | M27: 22.2 | N27: 0.2 | O27: 0.2
A28: ШО7ТЭШК | B28: Какао с молоком | C28: 200 | D28: 6.4 | E28: 6.1 | F28: 20.1 | G28: 156.3 | H28: 0.0 | I28: 0.3 | J28: 0.0 | K28: 8.0 | L28: 0.0 | M28: 0.0 | N28: 0.0 | O28: 0.0
A29: СПРЕБРЖ | B29: Хлеб пшеничный витамин. | C29: 40 | D29: 3.3 | E29: 0.9 | F29: 12.5 | G29: 69.0 | H29: 10.0 | I29: 16.0 | J29: 9.0 | K29: 0.0 | L29: 2.2 | M29: 5.0 | N29: 0.2 | O29: 0.0
A30: ДО7ФРУКТ | B30: Свежие фрукты | C30: 110 | D30: 0.4 | E30: 0.0 | F30: 11.3 | G30: 94.0 | H30: 0.6 | I30: 119.0 | J30: 14.0 | K30: 91.0 | L30: 0.1 | M30: 22.0 | N30: 0.0 | O30: 0.0
B31: Итого за прием | C31: =SUM(C27:C30) -> 535 | D31: =D27+D28+D29+D30 -> 17.36 | E31: =E27+E28+E29+E30 -> 18.84 | F31: 68.42 | G31: 555.30 | H31: 11.06 | I31: 248.74 | J31: 62.64 | K31: 187.59 | L31: 3.36 | M31: 49.22 | N31: 0.41 | O31: 0.22
B32: Обед
B33: Огурец свежий (порционно) | C33: 40 | D33: 0.3 | E33: 0.0 | F33: 1.1 | G33: 6.4 | H33: 1.1 | I33: 20.7 | J33: 11.1 | K33: 0.1 | L33: 0.7 | M33: 21.0 | N33: 0.2 | O33: 0.0
A34: тк68 | B34: Суп картофельный с лапшой домашней | C34: 250 | D34: 2.3 | E34: 9.2 | F34: 14.3 | G34: 88.0 | H34: 19.9 | I34: 40.9 | J34: 24.0 | K34: 47.0 | L34: 1.1 | M34: 96.3 | N34: 0.3 | O34: 0.1
A35: ДО7КЛ19 | B35: Плов из курицы | C35: 200 | D35: 30.9 | E35: 13.4 | F35: 46.9 | G35: 436.0 | H35: 0.4 | I35: 41.7 | J35: 26.0 | K35: 211.4 | L35: 0.6 | M35: 28.2 | N35: 0.4 | O35: 0.1
A36: ТК№77 | B36: Кисель витаминизированный | C36: 200 | D36: 0.0 | E36: 0.0 | F36: 26.0 | G36: 106.0 | H36: 0.3 | I36: 28.4 | J36: 3.7 | K36: 36.0 | L36: 0.1 | M36: 16.0 | N36: 0.8 | O36: 0.0
A37: СПРЕБРЖ | B37: Хлеб ржано-пшеничный витамин | C37: 60 | D37: 5.7 | E37: 1.6 | F37: 21.6 | G37: 121.0 | H37: 0.0 | I37: 0.6 | J37: 0.0 | K37: 12.2 | L37: 0.1 | M37: 0.0 | N37: 9.4 | O37: 0.0
B38: Итого за прием | C38: =SUM(C33:C37) -> 750 | D38: =D33+D34+D35+D36+D37 -> 39.18 | E38: =E33+E34+E35+E36+E37 -> 24.15 | F38: 109.93 | G38: 757.4 | H38: 21.62 | I38: 132.34 | J38: 64.77 | K38: 306.79 | L38: 2.55 | M38: 161.4 | N38: 11.06 | O38: 0.18
B39: Итого за день цена 125,60 | C39: =C31+C38 -> 1285 | D39: =D31+D38 -> 56.54 | E39: =E31+E38 -> 42.99 | F39: 178.35 | G39: 1312.70 | H39: 32.68 | I39: 381.08 | J39: 127.41 | K39: 494.38 | L39: 5.91 | M39: 210.62 | N39: 11.47 | O39: 0.40
B40: 3 день
A41: Прием пищи, наименование блюда | C41: Выход, г | D41: Белки, г | E41: Жиры, г | F41: Углеводы, г | G41: ЭЦ, ккал | H41: С, мг | I41: Минеральные элементы (мг) | M41: Витамины
I42: Са | J42: Mg | K42: Р | L42: Fe | M42: РЭ, мкг | N42: ТЭ, мг | O42: В1, мг
B43: Завтрак
A44: ДО7ЕС19 | B44: Каша "Дружба" с маслом | C44: 200 | D44: 6.7 | E44: 7.9 | F44: 21.7 | G44: 255 | H44: 0.035 | I44: 0.3 | J44: 0.04 | K44: 0.02 | L44: 133 | M44: 18.4 | N44: 234.4 | O44: 0.4
A45: ШО7ТЭШК | B45: Чай с сахаром | C45: 200 | D45: 0.0 | E45: 0.0 | F45: 10.0 | G45: 40.0 | H45: 35.0 | I45: 2.4 | J45: 0.0 | K45: 0.0 | L45: 0.0 | M45: 0.0 | N45: 0.0 | O45: 0.0
A46: СПРЕБРЖ | B46: Хлеб пшеничный витамин. | C46: 50 | D46: 4.1 | E46: 1.12 | F46: 15.6 | G46: 86.3 | H46: 0.01 | I46: 25 | J46: 0 | K46: 0 | L46: 33.2 | M46: 23.7 | N46: 22.8 | O46: 0.76
A47: ДО4МА19 | B47: Масло сливочное порционно | C47: 8 | D47: 0.1 | E47: 5.8 | F47: 0.1 | G47: 72.0 | H47: 0.1 | I47: 51.4 | J47: 5.6 | K47: 67.5 | L47: 0.0 | M47: 24.8 | N47: 0.1 | O47: 0.0
A48: ДО7ФРУКТ | B48: Кондитерка | C48: 42 | D48: 4.2 | E48: 5.8 | F48: 27.4 | G48: 255.0 | H48: 0.0 | I48: 10.0 | J48: 7.0 | K48: 32.0 | L48: 0.6 | M48: 0.0 | N48: 0.6 | O48: 0.1
B49: Итого за прием | C49: =SUM(C44:C48) -> 500 | D49: =D44+D46+D47+D48+D45 -> 15.06 | E49: =E44+E46+E47+E48+E45 -> 20.62 | F49: 74.83 | G49: 708.3 | H49: 35.125 | I49: 89.07 | J49: 12.66 | K49: 99.52 | L49: 166.81 | M49: 66.85 | N49: 257.88 | O49: 1.24
B50: Обед
A51: ТК№5 | B51: Салат из свежей капусты | C51: 40 | D51: 0.7 | E51: 2.5 | F51: 2.1 | G51: 36.0 | H51: 31.1 | I51: 39.6 | J51: 15.6 | K51: 0.0 | L51: 0.5 | M51: 0.0 | N51: 0.0 | O51: 0.0
A52: тк64 | B52: Суп картоф. с клецками | C52: 250 | D52: 8.0 | E52: 9.3 | F52: 38.7 | G52: 124.0 | H52: 19.9 | I52: 40.9 | J52: 24.0 | K52: 47.0 | L52: 1.1 | M52: 96.3 | N52: 0.3 | O52: 0.1
A53: Д12ЕСМИ | B53: Каша гречневая рассыпчатая | C53: 150 | D53: 6.8 | E53: 1.8 | F53: 34.7 | G53: 179.0 | H53: 0.2 | I53: 10.5 | J53: 0.0 | K53: 2.9 | L53: 91.8 | M53: 178.2 | N53: 85.2 | O53: 4.0
A54: ТК№97 | B54: Гуляш из говядины | C54: 50 | D54: 7.3 | E54: 7.9 | F54: 1.6 | G54: 222.0 | H54: 0.5 | I54: 0.0 | J54: 0.0 | K54: 0.0 | L54: 80.2 | M54: 72.3 | N54: 24.0 | O54: 4.7
A55: ШО7ИЯ19 | B55: Напиток из яблок | C55: 200 | D55: 0.2 | E55: 0.2 | F55: 36.3 | G55: 148.0 | H55: 0.0 | I55: 13.7 | J55: 129.4 | K55: 194.2 | L55: 4.4 | M55: 22.9 | N55: 0.0 | O55: 0.3
A56: СПРЕБРЖ | B56: Хлеб ржано-пшеничный витамин | C56: 60 | D56: 5.7 | E56: 1.6 | F56: 21.6 | G56: 121.0 | H56: 0.0 | I56: 0.6 | J56: 0.0 | K56: 12.2 | L56: 0.1 | M56: 0.0 | N56: 9.4 | O56: 0.0
B57: Итого за прием | C57: =SUM(C51:C56) -> 750 | D57: =D51+D52+D53+D54+D55+D56 -> 28.64 | E57: =E51+E52+E53+E54+E55+E56 -> 23.19 | F57: 134.93 | G57: 830 | H57: 51.71 | I57: 105.16 | J57: 169 | K57: 256.31 | L57: 178.08 | M57: 369.65 | N57: 118.91 | O57: 9.05
B58: Итого за день цена 125,60 | C58: =C49+C57 -> 1250 | D58: =D49+D57 -> 43.7 | E58: =E49+E57 -> 43.81 | F58: 209.76 | G58: 1538.3 | H58: 86.835 | I58: 194.23 | J58: 181.66 | K58: 355.83 | L58: 344.89 | M58: 436.5 | N58: 376.79 | O58: 10.29
B59: 4 день
A60: Прием пищи, наименование блюда | C60: Выход, г | D60: Белки, г | E60: Жиры, г | F60: Углеводы, г | G60: ЭЦ, ккал | H60: С, мг | I60: Минеральные элементы (мг) | M60: Витамины
I61: Са | J61: Mg | K61: Р | L61: Fe | M61: РЭ, мкг | N61: ТЭ, мг | O61: В1, мг
B62: Завтрак
A63: ДО7ИС20 | B63: Запеканка из творога со сгущенкой | C63: 150 | D63: 23.2 | E63: 12.7 | F63: 27.5 | G63: 275.0 | H63: 1.0 | I63: 96.0 | J63: 27.2 | K63: 114.4 | L63: 0.5 | M63: 45.3 | N63: 0.4 | O63: 0.1
A64: ТК № 302 | B64: Чай с лимоном | C64: 200 | D64: 1.5 | E64: 0.0 | F64: 28.6 | G64: 120.0 | H64: 1.3 | I64: 125.4 | J64: 31.0 | K64: 0.0 | L64: 1.0 | M64: 0.0 | N64: 0.0 | O64: 0.0
A65: СПРЕБРЖ | B65: Хлеб пшеничный витамин. | C65: 40 | D65: 3.3 | E65: 3.9 | F65: 12.5 | G65: 69.0 | H65: 10.0 | I65: 16.0 | J65: 9.0 | K65: 0.0 | L65: 2.2 | M65: 5.0 | N65: 0.2 | O65: 0.0
B66: Фрукты | C66: 110 | D66: 0.4 | E66: 0.0 | F66: 11.3 | G66: 94.0 | H66: 0.6 | I66: 119.0 | J66: 14.0 | K66: 91.0 | L66: 0.1 | M66: 22.0 | N66: 0.0 | O66: 0.0
B67: Итого за прием | C67: =SUM(C63:C66) -> 500 | D67: =D63+D64+D65+D66 -> 28.38 | E67: =E63+E64+E65+E66 -> 16.6 | F67: 79.88 | G67: 558 | H67: 12.86 | I67: 356.39 | J67: 81.21 | K67: 205.42 | L67: 3.76 | M67: 72.29 | N67: 0.56 | O67: 0.16
B68: Обед
A69: ДО7АД19 | B69: Салат витаминный | C69: 40 | D69: 0.6 | E69: 0.0 | F69: 2.9 | G69: 48.0 | H69: 5.4 | I69: 12.8 | J69: 10.7 | K69: 25.8 | L69: 0.4 | M69: 121.1 | N69: 0.1 | O69: 0.0
A70: тк 57 | B70: Суп картофельный с рисовой крупой | C70: 250 | D70: 2.6 | E70: 2.4 | F70: 19.0 | G70: 216.7 | H70: 11.7 | I70: 48.3 | J70: 44.1 | K70: 1.9 | L70: 2.4 | M70: 5.3 | N70: 0.0 | O70: 0.3
A71: тк 146 | B71: Картофельное пюре | C71: 150 | D71: 3.2 | E71: 6.5 | F71: 22.1 | G71: 157.0 | H71: 0.2 | I71: 22.3 | J71: 12.0 | K71: 79.7 | L71: 1.2 | M71: 4.4 | N71: 1.7 | O71: 0.1
A72: ТК№97 | B72: Котлеты куриные с соусом | C72: 100 | D72: 11.8 | E72: 14.8 | F72: 8.3 | G72: 163.0 | H72: 2.0 | I72: 4.8 | J72: 3.4 | K72: 36.0 | L72: 0.2 | M72: 20.0 | N72: 0.3 | O72: 0.0
A73: ТК № 295 | B73: Компот из с/ф | C73: 200 | D73: 1.7 | E73: 0.0 | F73: 39.9 | G73: 165.0 | H73: 0.2 | I73: 0.0 | J73: 0.1 | K73: 0.0 | L73: 21.8 | M73: 133.5 | N73: 165.0 | O73: 1.3
A74: СПРЕБРЖ | B74: Хлеб ржано-пшеничный витамин | C74: 50 | D74: 4.1 | E74: 1.12 | F74: 15.6 | G74: 86.3 | H74: 0.01 | I74: 25 | J74: 0 | K74: 0 | L74: 33.2 | M74: 23.7 | N74: 22.8 | O74: 0.76
B75: Итого за прием | C75: =SUM(C69:C74) -> 790 | D75: =D69+D70+D71+D72+D73+D74 -> 23.91 | E75: =E69+E70+E71+E72+E73+E74 -> 24.79 | F75: 107.75 | G75: 836.04 | H75: 19.395 | I75: 113.19 | J75: 70.33 | K75: 143.34 | L75: 59.12 | M75: 307.98 | N75: 189.89 | O75: 2.4
B76: Итого за день цена 125,60 | C76: =C67+C75 -> 1290 | D76: =D67+D75 -> 52.29 | E76: =E67+E75 -> 41.39 | F76: 187.63 | G76: 1394.04 | H76: 32.255 | I76: 469.58 | J76: 151.54 | K76: 348.76 | L76: 62.88 | M76: 380.27 | N76: 190.45 | O76: 2.56
B77: 5 день
A78: Прием пищи, наименование блюда | C78: Выход, г | D78: Белки, г | E78: Жиры, г | F78: Углеводы, г | G78: ЭЦ, ккал | H78: С, мг | I78: Минеральные элементы (мг) | M78: Витамины
I79: Са | J79: Mg | K79: Р | L79: Fe | M79: РЭ, мкг | N79: ТЭ, мг | O79: В1, мг
B80: Завтрак
A81: ТК184 | B81: Каша манная молочная с маслом | C81: 200 | D81: 7.3 | E81: 9.2 | F81: 30.5 | G81: 234.0 | H81: 0.5 | I81: 97.3 | J81: 16.1 | K81: 121.6 | L81: 2.4 | M81: 123.3 | N81: 0.2 | O81: 0.1
A82: СПРЕБРЖ | B82: Кофейный напиток на молоке | C82: 200 | D82: 2.9 | E82: 2.8 | F82: 14.9 | G82: 94.0 | H82: 1.3 | I82: 125.4 | J82: 31.0 | K82: 0.0 | L82: 1.0 | M82: 0.0 | N82: 0.0 | O82: 0.0
A83: ДО5МП18 | B83: Масло сливочное порционно | C83: 8 | D83: 0.1 | E83: 5.8 | F83: 0.1 | G83: 48.9 | H83: 0.1 | I83: 51.4 | J83: 5.6 | K83: 67.5 | L83: 0.0 | M83: 24.8 | N83: 0.1 | O83: 0.0
A84: СПРЕБРЖ | B84: Хлеб пшеничный витамин. | C84: 50 | D84: 4.1 | E84: 1.12 | F84: 15.6 | G84: 86.3 | H84: 0.01 | I84: 25 | J84: 0 | K84: 0 | L84: 33.2 | M84: 23.7 | N84: 22.8 | O84: 0.76
A85: ** | B85: печенье | C85: 42 | D85: 3.2 | E85: 7.8 | F85: 27.4 | G85: 191.9 | H85: 0.0 | I85: 10.0 | J85: 7.0 | K85: 32.0 | L85: 0.6 | M85: 0.0 | N85: 0.6 | O85: 0.1
B86: Итого за прием | C86: =SUM(C81:C85) -> 500 | D86: =D81+D82+D84+D85+D83 -> 17.51 | E86: =E81+E82+E84+E85+E83 -> 26.69 | F86: 88.53 | G86: 655.12 | H86: 1.84 | I86: 309.11 | J86: 59.74 | K86: 221.1 | L86: 37.17 | M86: 171.75 | N86: 23.68 | O86: 0.95
B87: Обед
B88: Огурец порционный | C88: 40 | D88: 0.3 | E88: 0.0 | F88: 1.1 | G88: 6.4 | H88: 1.1 | I88: 20.7 | J88: 11.1 | K88: 0.1 | L88: 0.7 | M88: 21.0 | N88: 0.2 | O88: 0.0
A89: тк 58 | B89: Борщ из свеж капусты с картоф | C89: 250 | D89: 4.3 | E89: 12.0 | F89: 38.5 | G89: 252.0 | H89: 30.0 | I89: 40.9 | J89: 20.8 | K89: 45.9 | L89: 0.8 | M89: 74.2 | N89: 1.9 | O89: 0.1
A90: ДО7БИ19 | B90: Биточек рыбный с соусом | C90: 100 | D90: 9.7 | E90: 8.8 | F90: 8.3 | G90: 134.0 | H90: 0.1 | I90: 4.0 | J90: 40.0 | K90: 0.4 | L90: 42.1 | M90: 136.0 | N90: 26.9 | O90: 2.2
A91: ДО7КЛ19 | B91: Рис отварной | C91: 150 | D91: 4.6 | E91: 2.2 | F91: 38.5 | G91: 188.0 | H91: 1.0 | I91: 40.6 | J91: 26.3 | K91: 0.0 | L91: 0.9 | M91: 0.0 | N91: 0.0 | O91: 0.0
A92: ШО7ИЯ19 | B92: Напиток из плодов | C92: 200 | D92: 0.2 | E92: 0.2 | F92: 36.3 | G92: 148.0 | H92: 0.0 | I92: 13.7 | J92: 129.4 | K92: 194.2 | L92: 4.4 | M92: 22.9 | N92: 0.0 | O92: 0.3
A93: СПРЕБРЖ | B93: Хлеб ржано-пшеничный витамин | C93: 50 | D93: 4.1 | E93: 1.12 | F93: 15.6 | G93: 86.3 | H93: 0.01 | I93: 25 | J93: 0 | K93: 0 | L93: 33.2 | M93: 23.7 | N93: 22.8 | O93: 0.76
B94: Итого за прием | C94: =SUM(C88:C93) -> 790 | D94: =D88+D89+D90+D91+D92+D93 -> 23.24 | E94: =E88+E89+E90+E91+E92+E93 -> 24.38 | F94: 138.34 | G94: 814.7 | H94: 32.2 | I94: 144.83 | J94: 227.52 | K94: 240.55 | L94: 82.02 | M94: 277.8 | N94: 51.77 | O94: 3.28
B95: Итого за день цена 125,60 | C95: =C86+C94 -> 1290 | D95: =D86+D94 -> 40.75 | E95: =E86+E94 -> 51.07 | F95: 226.87 | G95: 1469.82 | H95: 34.04 | I95: 453.94 | J95: 287.26 | K95: 461.65 | L95: 119.19 | M95: 449.55 | N95: 75.45 | O95: 4.23
B96: 6 день
A97: Прием пищи, наименование блюда | C97: Выход, г | D97: Белки, г | E97: Жиры, г | F97: Углеводы, г | G97: ЭЦ, ккал | H97: С, мг | I97: Минеральные элементы (мг) | M97: Витамины
I98: Са | J98: Mg | K98: Р | L98: Fe | M98: РЭ, мкг | N98: ТЭ, мг | O98: В1, мг
B99: Завтрак
A100: тк 193 | B100: Каша гречневая молочная с маслом | C100: 185 | D100: 9.2 | E100: 12.0 | F100: 33.4 | G100: 240.0 | H100: 0.0 | I100: 0.0 | J100: 0.0 | K100: 1.4 | L100: 18.5 | M100: 78.5 | N100: 10.8 | O100: 1.3
A101: СПРЕБРЖ | B101: Хлеб пшеничный витамин. | C101: 40 | D101: 3.3 | E101: 0.9 | F101: 12.5 | G101: 69.0 | H101: 10.0 | I101: 16.0 | J101: 9.0 | K101: 0.0 | L101: 2.2 | M101: 5.0 | N101: 0.2 | O101: 0.0
A102: ДО5МП18 | B102: сыр твердый | C102: 10 | D102: 2.5 | E102: 2.6 | F102: 0.0 | G102: 40.8 | H102: 0.1 | I102: 51.4 | J102: 5.6 | K102: 67.5 | L102: 0.0 | M102: 24.8 | N102: 0.1 | O102: 0.0
A103: ШО7ТЭШК | B103: Чай с сахаром | C103: 200 | D103: 0.0 | E103: 0.0 | F103: 10.0 | G103: 40.0 | H103: 35.0 | I103: 2.4 | J103: 0.0 | K103: 0.0 | L103: 0.0 | M103: 0.0 | N103: 0.0 | O103: 0.0
A104: ДО7ФРУКТ | B104: Свежие фрукты | C104: 100 | D104: 0.4 | E104: 0.0 | F104: 11.3 | G104: 94.0 | H104: 0.6 | I104: 119.0 | J104: 14.0 | K104: 91.0 | L104: 0.1 | M104: 22.0 | N104: 0.0 | O104: 0.0
B105: Итого за прием | C105: =SUM(C100:C104) -> 535 | D105: =D100+D102+D103+D104+D101 -> 15.33 | E105: =E100+E102+E103+E104+E101 -> 15.45 | F105: 67.18 | G105: 483.8 | H105: 45.7 | I105: 188.77 | J105: 28.62 | K105: 159.85 | L105: 20.86 | M105: 130.25 | N105: 11.06 | O105: 1.38
B106: Обед
A107: ** | B107: Помидоры свежие порционно | C107: 40 | D107: 0.2 | E107: 0.0 | F107: 1.2 | G107: 5.6 | H107: 10.6 | I107: 20.5 | J107: 7.5 | K107: 0.3 | L107: 0.4 | M107: 91.0 | N107: 0.8 | O107: 0.2
A108: тк 56 | B108: Рассольник ленинградский со сметаной | C108: 250 | D108: 1.7 | E108: 10.7 | F108: 25.3 | G108: 244.0 | H108: 21.3 | I108: 30.1 | J108: 22.3 | K108: 36.0 | L108: 0.8 | M108: 112.3 | N108: 0.2 | O108: 0.1
A109: ТК№11 | B109: Тефтели из говядины с соусом | C109: 100 | D109: 7.8 | E109: 10.8 | F109: 8.9 | G109: 184.0 | H109: 2.0 | I109: 4.8 | J109: 3.4 | K109: 36.0 | L109: 0.2 | M109: 20.0 | N109: 0.3 | O109: 0.0
A110: ДО7ЕЯ19 | B110: Гороховое пюре | C110: 150 | D110: 11.6 | E110: 1.8 | F110: 28.9 | G110: 196.0 | H110: 2.3 | I110: 19.2 | J110: 30.2 | K110: 158.0 | L110: 0.7 | M110: 41.8 | N110: 5.0 | O110: 0.1
A111: ШО7ИЯ19 | B111: Кисель витаминизированный | C111: 200 | D111: 0.0 | E111: 0.0 | F111: 26.0 | G111: 106.0 | H111: 0.3 | I111: 28.4 | J111: 3.7 | K111: 36.0 | L111: 0.1 | M111: 16.0 | N111: 0.8 | O111: 0.0
A112: СПРЕБРЖ | B112: Хлеб ржано-пшеничный витамин | C112: 50 | D112: 4.1 | E112: 1.12 | F112: 15.6 | G112: 86.3 | H112: 0.01 | I112: 25 | J112: 0 | K112: 0 | L112: 33.2 | M112: 23.7 | N112: 22.8 | O112: 0.76
B113: Итого за прием | C113: =SUM(C107:C112) -> 790 | D113: =D107+D108+D109+D110+D111+D112 -> 25.42 | E113: =E107+E108+E109+E110+E111+E112 -> 24.39 | F113: 105.84 | G113: 821.9 | H113: 36.44 | I113: 128.06 | J113: 67.03 | K113: 266.3 | L113: 35.35 | M113: 304.78 | N113: 29.85 | O113: 1.13
B114: Итого за день цена 125,60 | C114: =C105+C113 -> 1325 | D114: =D105+D113 -> 40.75 | E114: =E105+E113 -> 39.84 | F114: 173.02 | G114: 1305.7 | H114: 82.14 | I114: 316.83 | J114: 95.65 | K114: 426.15 | L114: 56.21 | M114: 435.03 | N114: 40.91 | O114: 2.51
B115: 7 день
A116: Прием пищи, наименование блюда | C116: Выход, г | D116: Белки, г | E116: Жиры, г | F116: Углеводы, г | G116: ЭЦ, ккал | H116: С, мг | I116: Минеральные элементы (мг) | M116: Витамины
I117: Са | J117: Mg | K117: Р | L117: Fe | M117: РЭ, мкг | N117: ТЭ, мг | O117: В1, мг
B118: Завтрак
A119: ДО7ЕС19 | B119: Каша "Дружба" с маслом | C119: 180 | D119: 6.3 | E119: 5.0 | F119: 49.3 | G119: 185.0 | H119: 0.0 | I119: 0.0 | J119: 0.0 | K119: 1.4 | L119: 18.5 | M119: 78.5 | N119: 10.8 | O119: 1.3
A120: ШО7ИЯ19 | B120: Чай с сахаром | C120: 200 | D120: 0.0 | E120: 0.0 | F120: 10.0 | G120: 40.0 | H120: 35.0 | I120: 2.4 | J120: 0.0 | K120: 0.0 | L120: 0.0 | M120: 0.0 | N120: 0.0 | O120: 0.0
A121: СПРЕБРЖ | B121: Хлеб пшеничный | C121: 30 | D121: 3.3 | E121: 0.9 | F121: 12.5 | G121: 69.0 | H121: 0.0 | I121: 2.4 | J121: 0.0 | K121: 0.0 | L121: 0.0 | M121: 0.0 | N121: 0.0 | O121: 0.0
A122: ДО4ЙГ19 | B122: Йогурт питьевой | C122: 100 | D122: 9.8 | E122: 9.2 | F122: 14.7 | G122: 92.0 | H122: 0.0 | I122: 10.0 | J122: 7.0 | K122: 32.0 | L122: 0.6 | M122: 0.0 | N122: 0.6 | O122: 0.1
B123: Итого за прием | C123: =SUM(C119:C122) -> 510 | D123: =D119+D120+D121+D122 -> 19.3 | E123: =E119+E120+E121+E122 -> 15.1 | F123: 86.5 | G123: 386.0 | H123: 35.0 | I123: 14.8 | J123: 7.0 | K123: 33.4 | L123: 19.1 | M123: 78.5 | N123: 11.4 | O123: 1.4
B124: Обед
B125: Салат витаминный | C125: 40 | D125: 0.6 | E125: 0.0 | F125: 2.9 | G125: 48.0 | H125: 5.4 | I125: 12.8 | J125: 10.7 | K125: 25.8 | L125: 0.4 | M125: 121.1 | N125: 0.1 | O125: 0.0
A126: тк 65 | B126: Суп картофельный с горохом | C126: 200 | D126: 2.6 | E126: 7.2 | F126: 19.0 | G126: 216.7 | H126: 11.7 | I126: 48.3 | J126: 44.1 | K126: 1.9 | L126: 2.4 | M126: 5.3 | N126: 0.0 | O126: 0.3
A127: тк 91 | B127: Макаронные изделия отварные | C127: 180 | D127: 5.1 | E127: 0.5 | F127: 35.7 | G127: 172.0 | H127: 26.8 | I127: 44.7 | J127: 3.4 | K127: 107.7 | L127: 1.2 | M127: 124.7 | N127: 0.2 | O127: 0.1
A128: ТК№97 | B128: Котлеты из птицы с соусом | C128: 100 | D128: 11.8 | E128: 14.8 | F128: 8.3 | G128: 163.0 | H128: 2.0 | I128: 4.8 | J128: 3.4 | K128: 36.0 | L128: 0.2 | M128: 20.0 | N128: 0.3 | O128: 0.0
A129: ТК№311 | B129: Сок фруктовый | C129: 200 | D129: 0.0 | E129: 0.0 | F129: 22.0 | G129: 111.0 | H129: 0.0 | I129: 9.0 | J129: 6.3 | K129: 28.8 | L129: 0.5 | M129: 0.0 | N129: 0.5 | O129: 0.1
A130: СПРЕБРЖ | B130: Хлеб ржано-пшеничный | C130: 50 | D130: 5.7 | E130: 1.6 | F130: 21.6 | G130: 121.0 | H130: 0.0 | I130: 0.6 | J130: 0.0 | K130: 12.2 | L130: 0.1 | M130: 0.0 | N130: 9.4 | O130: 0.0
B131: Итого за прием | C131: =SUM(C125:C130) -> 770 | D131: =D125+D126+D127+D128+D129+D130 -> 25.8 | E131: =E125+E126+E127+E128+E129+E130 -> 24 | F131: 109.47 | G131: 831.74 | H131: 45.83 | I131: 120.24 | J131: 68 | K131: 212.38 | L131: 4.72 | M131: 271.12 | N131: 10.54 | O131: 0.47
B132: Итого за день цена 125,60 | C132: =C123+C131 -> 1280 | D132: =D123+D131 -> 45.13 | E132: =E123+E131 -> 39.09 | F132: 195.92 | G132: 1217.74 | H132: 80.85 | I132: 135.04 | J132: 75 | K132: 245.73 | L132: 23.81 | M132: 349.62 | N132: 21.92 | O132: =O123+O131 -> 1.84
B133: 8 день
A134: Прием пищи, наименование блюда | C134: Выход, г | D134: Белки, г | E134: Жиры, г | F134: Углеводы, г | G134: ЭЦ, ккал | H134: С, мг | I134: Минеральные элементы (мг) | M134: Витамины
I135: Са | J135: Mg | K135: Р | L135: Fe | M135: РЭ, мкг | N135: ТЭ, мг | O135: В1, мг
B136: Завтрак
A137: ДО7ИС20 | B137: Запеканка творожная со сгущенкой | C137: 150 | D137: 23.2 | E137: 12.7 | F137: 27.5 | G137: 275.0 | H137: 1.0 | I137: 96.0 | J137: 27.2 | K137: 114.4 | L137: 0.5 | M137: 45.3 | N137: 0.4 | O137: 0.1
A138: ШО7ТЭШК | B138: Чай с молоком и сахаром | C138: 200 | D138: 1.4 | E138: 1.4 | F138: 11.2 | G138: 61.0 | H138: 0.0 | I138: 10.0 | J138: 7.0 | K138: 32.0 | L138: 0.6 | M138: 0.0 | N138: 0.6 | O138: 0.1
A139: СПРЕБРЖ | B139: Хлеб пшеничный витамин. | C139: 30 | D139: 3.3 | E139: 0.9 | F139: 12.5 | G139: 69.0 | H139: 0.0 | I139: 10.0 | J139: 7.0 | K139: 32.0 | L139: 0.6 | M139: 0.0 | N139: 0.6 | O139: 0.1
A140: ДО7ФРУКТ | B140: Свежие фрукты | C140: 120 | D140: 0.5 | E140: 0.0 | F140: 13.6 | G140: 102.0 | H140: 10.0 | I140: 16.0 | J140: 9.0 | K140: 11.0 | L140: 21.0 | M140: 5.0 | N140: 0.2 | O140: 0.0
B141: Итого за прием | C141: =SUM(C137:C140) -> 500 | D141: =D137+D138+D139+D140 -> 28.36 | E141: =E137+E138+E139+E140 -> 15 | F141: 64.74 | G141: 507 | H141: 10.96 | I141: 131.97 | J141: 50.21 | K141: 189.42 | L141: 22.55 | M141: 50.29 | N141: 1.76 | O141: 0.21
B142: Обед
A143: ДО7АД19 | B143: Огурец свежий (порционно) | C143: 40 | D143: 0.3 | E143: 0.0 | F143: 1.1 | G143: 6.4 | H143: 1.1 | I143: 20.7 | J143: 11.1 | K143: 0.1 | L143: 0.7 | M143: 21.0 | N143: 0.2 | O143: 0.0
A144: тк 60 | B144: Суп картофельный | C144: 250 | D144: 6.2 | E144: 4.1 | F144: 25.5 | G144: 169.0 | H144: 17.2 | I144: 48.7 | J144: 31.2 | K144: 47.0 | L144: 1.5 | M144: 96.3 | N144: 0.3 | O144: 0.1
A145: ДО7КЛ19 | B145: Плов из птицы | C145: 180 | D145: 27.8 | E145: 12.0 | F145: 42.2 | G145: 392.0 | H145: 0.4 | I145: 41.7 | J145: 26.0 | K145: 211.4 | L145: 0.6 | M145: 28.2 | N145: 0.4 | O145: 0.1
A146: ТК"77 | B146: Напиток из яблок | C146: 200 | D146: 0.2 | E146: 0.2 | F146: 36.3 | G146: 148.0 | H146: 0.0 | I146: 13.7 | J146: 129.4 | K146: 194.2 | L146: 4.4 | M146: 22.9 | N146: 0.0 | O146: 0.3
A147: СПРЕБРЖ | B147: Хлеб ржано-пшеничный витамин | C147: 80 | D147: 5.7 | E147: 1.6 | F147: 21.6 | G147: 121.0 | H147: 0.0 | I147: 9.0 | J147: 6.3 | K147: 28.8 | L147: 0.5 | M147: 0.0 | N147: 0.5 | O147: 0.1
B148: Итого за прием | C148: =SUM(C143:C147) -> 750 | D148: =D143+D144+D145+D146+D147 -> 40.22 | E148: =E143+E144+E145+E146+E147 -> 17.87 | F148: 126.69 | G148: 836.4 | H148: 18.73 | I148: 133.81 | J148: 204.02 | K148: 481.52 | L148: 7.71 | M148: 168.3 | N148: 1.37 | O148: 0.48
B149: Итого за день цена 125,60 | C149: =C141+C148 -> 1250 | D149: =D141+D148 -> 68.58 | E149: =E141+E148 -> 32.87 | F149: 191.43 | G149: 1343.4 | H149: 29.69 | I149: 265.78 | J149: 254.23 | K149: 670.94 | L149: 30.26 | M149: 218.59 | N149: 3.13 | O149: =O141+O148 -> 0.69
B150: 9 день
A151: Прием пищи, наименование блюда | C151: Выход, г | D151: Белки, г | E151: Жиры, г | F151: Углеводы, г | G151: ЭЦ, ккал | H151: С, мг | I151: Минеральные элементы (мг) | M151: Витамины
I152: Са | J152: Mg | K152: Р | L152: Fe | M152: РЭ, мкг | N152: ТЭ, мг | O152: В1, мг
B153: Завтрак
A154: ТК№183 | B154: Каша гречневая молочная с маслом | C154: 180 | D154: 6.8 | E154: 1.8 | F154: 34.7 | G154: 179.0 | H154: 0.2 | I154: 47.5 | J154: 26.3 | K154: 13.0 | L154: 0.8 | M154: 50.3 | N154: 0.1 | O154: 0.1
A155: СПРЕБРЖ | B155: Хлеб пшеничный витамин. | C155: 50 | D155: 4.1 | E155: 1.12 | F155: 15.6 | G155: 86.3 | H155: 0.01 | I155: 25 | J155: 0 | K155: 0 | L155: 33.2 | M155: 23.7 | N155: 22.8 | O155: 0.76
A156: ШО7ТЭШК | B156: Чай с сахаром | C156: 200 | D156: 2.9 | E156: 2.8 | F156: 14.9 | G156: 94.0 | H156: 1.3 | I156: 125.4 | J156: 31.0 | K156: 0.0 | L156: 1.0 | M156: 0.0 | N156: 0.0 | O156: 0.0
A157: ** | B157: Кондитерские изделия (штучка) | C157: 70 | D157: 5.3 | E157: 13.0 | F157: 45.7 | G157: 320.0 | H157: 0.0 | I157: 10.0 | J157: 7.0 | K157: 32.0 | L157: 0.6 | M157: 0.0 | N157: 0.6 | O157: 0.1
B158: Итого за прием | C158: =SUM(C154:C157) -> 500 | D158: =D154+D155+D156+D157 -> 19.08 | E158: =E154+E155+E156+E157 -> 18.66 | F158: 110.91 | G158: 679.3 | H158: 1.48 | I158: 207.88 | J158: 64.27 | K158: 45 | L158: 35.55 | M158: 74 | N158: 23.52 | O158: 0.91
B159: Обед
A160: ТК№5 | B160: Салат из свеж капусты | C160: 40 | D160: 0.7 | E160: 2.5 | F160: 2.1 | G160: 36.0 | H160: 31.1 | I160: 39.6 | J160: 15.6 | K160: 0.0 | L160: 0.5 | M160: 0.0 | N160: 0.0 | O160: 0.0
A161: тк 69 | B161: суп из овощей | C161: 250 | D161: 1.7 | E161: 10.7 | F161: 25.3 | G161: 244.0 | H161: 21.3 | I161: 30.1 | J161: 22.3 | K161: 36.0 | L161: 0.8 | M161: 112.3 | N161: 0.2 | O161: 0.1
A162: тк 146 | B162: Картофельное пюре | C162: 180 | D162: 3.2 | E162: 6.5 | F162: 22.1 | G162: 157.0 | H162: 0.2 | I162: 22.3 | J162: 12.0 | K162: 79.7 | L162: 1.2 | M162: 4.4 | N162: 1.7 | O162: 0.1
A163: ТК №129 | B163: Котлеты рыбные с соусом | C163: 100 | D163: 14.7 | E163: 6.8 | F163: 8.3 | G163: 134.0 | H163: 0.1 | I163: 4.0 | J163: 40.0 | K163: 0.4 | L163: 42.1 | M163: 136.0 | N163: 26.9 | O163: 2.2
A164: ТК № 295 | B164: Компот из с/ф | C164: 200 | D164: 0.0 | E164: 0.0 | F164: 10.0 | G164: 40.0 | H164: 35.0 | I164: 2.4 | J164: 0.0 | K164: 0.0 | L164: 0.0 | M164: 0.0 | N164: 0.0 | O164: 0.0
A165: СПРЕБРЖ | B165: Хлеб ржано-пшеничный витамин | C165: 50 | D165: 4.1 | E165: 1.12 | F165: 15.6 | G165: 86.3 | H165: 0.01 | I165: 25 | J165: 0 | K165: 0 | L165: 33.2 | M165: 23.7 | N165: 22.8 | O165: 0.76
B166: Итого за прием | C166: =SUM(C160:C165) -> 820 | D166: =D160+D161+D162+D163+D164+D165 -> 24.34 | E166: =E160+E161+E162+E163+E164+E165 -> 27.55 | F166: 83.35 | G166: 697.3 | H166: 87.67 | I166: 123.27 | J166: 89.87 | K166: 116.1 | L166: 77.83 | M166: 276.37 | N166: 51.53 | O166: =O160+O161+O162+O163+O164+O165 -> 3.09
B167: Итого за день цена 125,60 | C167: =C158+C166 -> 1320 | D167: =D158+D166 -> 43.42 | E167: =E158+E166 -> 46.21 | F167: 194.26 | G167: 1376.6 | H167: 89.15 | I167: 331.15 | J167: 154.14 | K167: 161.1 | L167: 113.38 | M167: 350.37 | N167: 75.05 | O167: 4
B168: 10 день
A169: Прием пищи, наименование блюда | C169: Выход, г | D169: Белки, г | E169: Жиры, г | F169: Углеводы, г | G169: ЭЦ, ккал | H169: С, мг | I169: Минеральные элементы (мг) | M169: Витамины
I170: Са | J170: Mg | K170: Р | L170: Fe | M170: РЭ, мкг | N170: ТЭ, мг | O170: В1, мг
B171: Завтрак
A172: ТК№189 | B172: Каша манная молочная с маслом | C172: 200 | D172: 7.3 | E172: 9.2 | F172: 30.5 | G172: 234.0 | H172: 0.5 | I172: 97.3 | J172: 16.1 | K172: 121.6 | L172: 2.4 | M172: 123.3 | N172: 0.2 | O172: 0.1
A173: ШО7ТЭШК | B173: Какао с молоком | C173: 200 | D173: 6.4 | E173: 6.1 | F173: 20.1 | G173: 156.3 | H173: 0.0 | I173: 0.3 | J173: 0.0 | K173: 8.0 | L173: 0.0 | M173: 0.0 | N173: 0.0 | O173: 0.0
A174: СПРЕБРЖ | B174: Хлеб пшеничный витамин | C174: 40 | D174: 3.3 | E174: 0.9 | F174: 12.5 | G174: 69.0 | H174: 10.0 | I174: 16.0 | J174: 9.0 | K174: 0.0 | L174: 2.2 | M174: 5.0 | N174: 0.2 | O174: 0.0
B175: Кондитерские изделия | C175: 60 | D175: 4.5 | E175: 11.1 | F175: 39.2 | G175: 274.0 | H175: 0.0 | I175: 10.0 | J175: 7.0 | K175: 32.0 | L175: 0.6 | M175: 0.0 | N175: 0.6 | O175: 0.1
B176: Итого за прием | C176: =SUM(C172:C175) -> 500 | D176: =D172+D173+D174+D175 -> 21.46 | E176: =E172+E173+E174+E175 -> 27.34 | F176: 102.3 | G176: 733.3 | H176: 10.45 | I176: 123.62 | J176: 32.12 | K176: 161.6 | L176: 5.15 | M176: 128.3 | N176: 1 | O176: 0.17
B177: Обед
A178: ** | B178: Огурец свежий порционно | C178: 40 | D178: 0.3 | E178: 0.0 | F178: 1.1 | G178: 6.4 | H178: 1.1 | I178: 20.7 | J178: 11.1 | K178: 0.1 | L178: 0.7 | M178: 21.0 | N178: 0.2 | O178: 0.0
A179: тк 68 | B179: Суп картофельный с лапшой домашней | C179: 250 | D179: 2.3 | E179: 9.2 | F179: 14.3 | G179: 88.0 | H179: 19.9 | I179: 40.9 | J179: 24.0 | K179: 47.0 | L179: 1.1 | M179: 96.3 | N179: 0.3 | O179: 0.1
A180: ДО7БИ19 | B180: Биточки мясные с соусом | C180: 100 | D180: 16.2 | E180: 14.5 | F180: 13.9 | G180: 252.0 | H180: 2.0 | I180: 4.8 | J180: 3.4 | K180: 36.0 | L180: 0.2 | M180: 20.0 | N180: 0.3 | O180: 0.0
A181: ДО7ЕНР9 | B181: Рис отварной | C181: 150 | D181: 3.6 | E181: 2.2 | F181: 38.5 | G181: 188.0 | H181: 1.0 | I181: 40.6 | J181: 26.3 | K181: 0.0 | L181: 0.9 | M181: 0.0 | N181: 0.0 | O181: 0.0
A182: ТК№77 | B182: Кисель витаминизированный | C182: 200 | D182: 0.0 | E182: 0.0 | F182: 26.0 | G182: 106.0 | H182: 0.3 | I182: 28.4 | J182: 3.7 | K182: 36.0 | L182: 0.1 | M182: 16.0 | N182: 0.8 | O182: 0.0
A183: СПРЕБРЖ | B183: Хлеб ржано-пшеничный витамин | C183: 50 | D183: 5.7 | E183: 1.6 | F183: 21.6 | G183: 121.0 | H183: 0.0 | I183: 9.0 | J183: 6.3 | K183: 28.8 | L183: 0.5 | M183: 0.0 | N183: 0.5 | O183: 0.1
B184: Итого за прием | C184: =SUM(C178:C183) -> 790 | D184: =D178+D179+D180+D181+D182+D183 -> 28.15 | E184: =E178+E179+E180+E181+E182+E183 -> 27.51 | F184: 115.4 | G184: 761.4 | H184: 24.23 | I184: 144.42 | J184: 74.72 | K184: 147.94 | L184: 3.46 | M184: 153.25 | N184: 2.01 | O184: =O178+O179+O180+O181+O182+O183 -> 0.2
B185: Итого за день цена 125,60 | C185: =C176+C184 -> 1290 | D185: =D176+D184 -> 49.61 | E185: =E176+E184 -> 54.85 | F185: 217.7 | G185: 1494.7 | H185: 34.68 | I185: 268.04 | J185: 106.84 | K185: 309.54 | L185: 8.61 | M185: 281.55 | N185: 3.01 | O185: 0.37
B186: 11 день
A187: Прием пищи, наименование блюда | C187: Выход, г | D187: Белки, г | E187: Жиры, г | F187: Углеводы, г | G187: ЭЦ, ккал | H187: С, мг | I187: Минеральные элементы (мг) | M187: Витамины
I188: Са | J188: Mg | K188: Р | L188: Fe | M188: РЭ, мкг | N188: ТЭ, мг | O188: В1, мг
B189: Завтрак
A190: тк 209 | B190: Каша пшеничная молочная с маслом | C190: 185 | D190: 6.7 | E190: 7.9 | F190: 21.7 | G190: 240 | H190: 0.035 | I190: 0.3 | J190: 0.04 | K190: 0.02 | L190: 133 | M190: 18.4 | N190: 234.4 | O190: 0.4
A191: ТК№288 | B191: Чай с лимоном | C191: 200 | D191: 1.5 | E191: 0.0 | F191: 28.6 | G191: 120.0 | H191: 1.3 | I191: 125.4 | J191: 31.0 | K191: 0.0 | L191: 1.0 | M191: 0.0 | N191: 0.0 | O191: 0.0
A192: СПРЕБРЖ | B192: Хлеб пшеничный витамин. | C192: 45 | D192: 3.3 | E192: 0.9 | F192: 12.5 | G192: 69.0 | H192: 0.0 | I192: 10.0 | J192: 7.0 | K192: 32.0 | L192: 0.6 | M192: 0.0 | N192: 0.6 | O192: 0.1
A193: ДО5МП18 | B193: Масло сливочное порционно | C193: 8 | D193: 0.1 | E193: 5.8 | F193: 0.1 | G193: 48.9 | H193: 0.1 | I193: 51.4 | J193: 5.6 | K193: 67.5 | L193: 0.0 | M193: 24.8 | N193: 0.1 | O193: 0.0
A194: ДО7ФРУКТ | B194: йогурт | C194: 100 | D194: 9.8 | E194: 9.2 | F194: 14.7 | G194: 92.0 | H194: 0.0 | I194: 10.0 | J194: 7.0 | K194: 32.0 | L194: 0.6 | M194: 0.0 | N194: 0.6 | O194: 0.1
B195: Итого за прием | C195: =SUM(C190:C194) -> 538 | D195: =D190+D191+D192+D193+D194 -> 21.34 | E195: =E190+E191+E192+E193+E194 -> 23.8 | F195: 77.58 | G195: 569.88 | H195: 1.415 | I195: 197.09 | J195: 50.66 | K195: 131.52 | L195: 135.15 | M195: 43.15 | N195: 235.68 | O195: 0.57
B196: Обед
B197: Помидор свежий порционно | C197: 40 | D197: 0.2 | E197: 0.0 | F197: 1.2 | G197: 5.6 | H197: 10.6 | I197: 20.5 | J197: 7.5 | K197: 0.3 | L197: 0.4 | M197: 91.0 | N197: 0.8 | O197: 0.2
A198: тк 55 | B198: Щи из свеж. капусты с картофелем и сметаной | C198: 250 | D198: 1.3 | E198: 4.3 | F198: 6.5 | G198: 170.0 | H198: 11.7 | I198: 48.3 | J198: 44.1 | K198: 1.9 | L198: 2.4 | M198: 5.3 | N198: 0.0 | O198: 0.3
A199: тк 227 | B199: Макаронные изделия отварные | C199: 185 | D199: 8.1 | E199: 0.5 | F199: 35.7 | G199: 172.0 | H199: 26.8 | I199: 44.7 | J199: 3.4 | K199: 107.7 | L199: 1.2 | M199: 124.7 | N199: 0.2 | O199: 0.1
A200: ТК№11 | B200: Котлеты из птицы с соусом | C200: 100 | D200: 7.8 | E200: 10.8 | F200: 8.3 | G200: 163.0 | H200: 2.0 | I200: 4.8 | J200: 3.4 | K200: 36.0 | L200: 0.2 | M200: 20.0 | N200: 0.3 | O200: 0.0
A201: ТК№296 | B201: Компот из с/ф | C201: 200 | D201: 1.7 | E201: 0.0 | F201: 39.9 | G201: 165.0 | H201: 0.2 | I201: 0.0 | J201: 0.1 | K201: 0.0 | L201: 21.8 | M201: 133.5 | N201: 165.0 | O201: 1.3
A202: СПРЕБРЖ | B202: Хлеб ржано-пшеничный витмамин | C202: 50 | D202: 4.1 | E202: 1.12 | F202: 15.6 | G202: 86.3 | H202: 0.01 | I202: 25 | J202: 0 | K202: 0 | L202: 33.2 | M202: 23.7 | N202: 22.8 | O202: 0.76
... 181 more rows

Sheet Лист2
